bitfinex-derivatives/quotes_SOLF0:USTF0_20250709
["timestamp","ask_amount","ask_price","bid_price","bid_amount"]
[1752078248901,6.4762,154.39,154.38,9.01114482]
[1752078249702,6.4762,154.39,154.37,20.16841637]
[1752078250097,6.476,154.4,154.38,6.4766]
[1752078250296,6.476,154.4,154.37,13.69161637]
[1752078250699,6.4763,154.39,154.37,20.16841637]
[1752078251597,6.4763,154.39,154.38,9.01114482]
[1752078252402,6.4759,154.4,154.38,6.4766]
[1752078252601,2.3069,154.44,154.37,13.69161637]
[1752078253906,2.3069,154.44,154.37,20.16841637]
[1752078254203,2.3069,154.44,154.38,9.01114482]
[1752078255107,6.4763,154.39,154.38,9.01114482]
[1752078263016,6.4766,154.38,154.37,9.01114482]
[1752078263414,4.68047155,154.43,154.36,9.01114482]
[1752078263615,6.477,154.37,154.36,9.01114482]
[1752078264416,6.4775,154.36,154.35,9.01114482]
[1752078264613,12.9494,154.43,154.35,4.68047155]
[1752078264614,13.75112886,154.43,154.35,4.68047155]
[1752078264818,6.4765,154.39,154.37,9.01114482]
[1752078265812,4.69637846,154.43,154.37,15.48814482]
[1752078266414,4.69637846,154.43,154.38,6.4766]
[1752078266614,4.69637846,154.41,154.37,9.01114482]
[1752078266915,15.2555,154.44,154.37,9.01114482]
[1752078266916,6.4766,154.38,154.37,9.01114482]
[1752078267219,6.4766,154.38,154.35,12.03995314]
[1752078267220,4.69637846,154.39,154.35,12.03995314]
[1752078267415,4.69637846,154.37,154.33,12.03995314]
[1752078267622,4.69637846,154.37,154.31,17.99836561]
[1752078267623,6.4787,154.33,154.32,12.03995314]
[1752078267823,6.4787,154.33,154.31,12.03995314]
[1752078268115,4.7001071,154.37,154.31,12.03995314]
[1752078268422,4.7001071,154.37,154.31,6.4793]
[1752078268826,6.4785,154.34,154.31,6.4793]
[1752078269324,6.4785,154.34,154.32,6.4791]
[1752078270023,6.4785,154.34,154.31,6.4794]
[1752078270723,6.4789,154.33,154.31,6.4794]
[1752078271124,6.4789,154.33,154.3,12.03995314]
[1752078271125,6.4789,154.33,154.3,18.51975314]
[1752078272021,6.4789,154.33,154.3,6.4798]
[1752078272326,6.4789,154.33,154.31,6.4795]
[1752078272524,6.4789,154.33,154.29,576.06006024]
[1752078272726,6.4789,154.33,154.3,6.4798]
[1752078273424,6.4789,154.33,154.29,576.06006024]
[1752078273425,6.4789,154.33,154.31,6.4795]
[1752078273628,4.7001071,154.37,154.29,571.35995314]
[1752078273830,4.7001071,154.35,154.29,12.03995314]
[1752078274626,6.4798,154.31,154.28,18.52065314]
[1752078275630,6.4801,154.3,154.28,18.52065314]
[1752078276227,6.4798,154.31,154.28,18.52065314]
[1752078276824,4.7001071,154.33,154.27,18.52095314]
[1752078277527,6.4804,154.29,154.27,6.481]
[1752078277728,4.7001071,154.33,154.27,6.481]
[1752078277921,4.7001071,154.33,154.28,6.4807]
[1752078278521,6.4799,154.31,154.28,6.4807]
[1752078278732,4.7001071,154.33,154.28,6.4807]
[1752078280232,6.48,154.3,154.28,6.4807]
[1752078281730,6.48,154.3,154.27,6.481]
[1752078281930,4.7001071,154.31,154.24,4.7001071]
[1752078282430,6.4796,154.31,154.24,16.74006024]
[1752078282833,6.4796,154.31,154.28,6.4806]
[1752078283032,6.4801,154.3,154.28,6.4806]
[1752078285034,4.7001071,154.33,154.27,6.481]
[1752078285428,4.7001071,154.33,154.25,4.7001071]
[1752078285626,4.7001071,154.33,154.28,6.4805]
[1752078285829,4.7001071,154.33,154.25,4.7001071]
[1752078286629,4.7001071,154.33,154.27,6.481]
[1752078287633,6.4804,154.3,154.27,6.481]
[1752078288231,6.4798,154.31,154.28,6.4807]
[1752078288628,4.7001071,154.33,154.28,6.4807]
[1752078289034,12.9545,154.37,154.28,6.4807]
[1752078289232,4.7001071,154.33,154.29,6.4804]
[1752078289432,6.4798,154.31,154.25,4.7001071]
[1752078289831,6.4798,154.31,154.28,6.4806]
[1752078290226,6.4798,154.31,154.25,4.7001071]
[1752078290830,4.7001071,154.35,154.27,4.7001071]
[1752078291034,4.7001071,154.35,154.3,6.4798]
[1752078291327,6.4789,154.33,154.3,6.4798]
[1752078291529,559.52,154.38,154.33,6.4784]
[1752078291939,6.4773,154.37,154.33,4.7001071]
[1752078292133,2.3007,154.39,154.33,4.7001071]
[1752078292533,2.3086,154.4,154.35,4.7001071]
[1752078292936,6.4764,154.39,154.35,4.7001071]
[1752078293835,8.7845,154.4,154.37,6.477]
[1752078294237,2.3086,154.4,154.35,4.7001071]
[1752078294434,6.4765,154.39,154.36,6.4773]
[1752078294634,2.3086,154.4,154.34,4.7001071]
[1752078295336,6.477,154.37,154.35,6.4779]
[1752078295936,6.477,154.37,154.34,11.1783071]
[1752078296333,6.4775,154.36,154.29,204.70675314]
[1752078296540,2.3086,154.4,154.33,4.7001071]
[1752078297236,2.3086,154.4,154.34,6.4782]
[1752078297832,2.3086,154.4,154.29,14.38335314]
[1752078298037,4.7001071,154.37,154.3,4.7001071]
[1752078298237,6.4789,154.33,154.3,4.7001071]
[1752078299143,6.4789,154.33,154.31,6.4795]
[1752078299943,6.4785,154.34,154.3,4.7001071]
[1752078300139,2.3086,154.4,154.27,12.03995314]
[1752078300140,4.7001071,154.39,154.32,4.7001071]
[1752078300347,2.3086,154.4,154.32,4.7001071]
[1752078300545,2.3086,154.4,154.29,13.03995314]
[1752078300546,6.4767,154.38,154.35,6.4776]
[1752078300746,2.3086,154.4,154.34,4.7001071]
[1752078301047,6.4769,154.38,154.35,6.4777]
[1752078301641,6.4769,154.38,154.36,6.4774]
[1752078301847,6.4764,154.39,154.36,6.4774]
[1752078302151,4.7001071,154.43,154.37,6.4768]
[1752078302441,6.476,154.4,154.37,6.4768]
[1752078303050,6.4762,154.39,154.37,6.4768]
[1752078303351,6.4762,154.39,154.36,4.7001071]
[1752078303352,6.4762,154.39,154.36,11.1774071]
[1752078303654,6.4767,154.38,154.36,11.1774071]
[1752078304857,6.4763,154.39,154.37,6.477]
[1752078305942,6.4763,154.39,154.36,11.1773071]
[1752078306855,6.4763,154.39,154.37,6.477]
[1752078308647,6.476,154.4,154.38,6.4766]
[1752078308848,4.7001071,154.43,154.36,4.7001071]
[1752078309450,6.4765,154.39,154.36,4.7001071]
[1752078309957,6.4765,154.39,154.37,6.4768]
[1752078310856,6.4756,154.41,154.38,4.7001071]
[1752078311454,6.4746,154.43,154.4,4.7001071]
[1752078311764,2.2013,154.45,154.4,4.7001071]
[1752078312059,6.4752,154.42,154.4,11.1758071]
[1752078312257,6.4752,154.42,154.4,4.7001071]
[1752078312559,6.4754,154.41,154.39,6.4759]
[1752078312752,6.9014071,154.45,154.38,4.7001071]
[1752078313154,6.9014071,154.45,154.38,11.1764071]
[1752078313358,6.4757,154.41,154.38,11.1764071]
[1752078314762,6.9014071,154.45,154.38,4.7001071]
[1752078315261,6.4761,154.4,154.38,4.7001071]
[1752078316762,6.4761,154.4,154.38,11.1767071]
[1752078317654,6.4761,154.4,154.38,4.7001071]
[1752078319765,4.7001071,154.44,154.38,4.7001071]
[1752078320264,4.7001071,154.44,154.39,6.476]
[1752078320563,559.6,154.46,154.33,13.03995314]
[1752078320564,559.6,154.46,154.4,4.7001071]
[1752078320862,4.7001071,154.5,154.43,6.4744]
[1752078321166,4.7001071,154.5,154.42,4.7001071]
[1752078321663,4.7001071,154.48,154.4,4.7001071]
[1752078322468,4.7001071,154.48,154.4,6.4758]
[1752078322764,6.4762,154.39,154.37,11.1769071]
[1752078322956,4.7001071,154.42,154.34,12.03995314]
[1752078323157,4.7001071,154.4,154.34,4.7001071]
[1752078323357,6.4772,154.37,154.35,6.4777]
[1752078323554,4.7001071,154.42,154.34,4.7001071]
[1752078323765,6.4765,154.39,154.36,11.1772071]
[1752078324352,6.4765,154.39,154.37,6.477]
[1752078325365,6.4765,154.39,154.36,6.4772]
[1752078326364,6.4765,154.39,154.37,6.4769]
[1752078327069,6.4765,154.39,154.36,6.4773]
[1752078328071,6.4767,154.38,154.36,6.4773]
[1752078328374,4.7001071,154.4,154.33,4.7001071]
[1752078329063,6.4777,154.36,154.33,4.7001071]
[1752078329769,6.4777,154.36,154.34,6.4782]
[1752078330466,6.4777,154.36,154.33,11.1787071]
[1752078330673,4.7001071,154.38,154.31,4.7001071]
[1752078330970,4.7001071,154.38,154.33,6.4787]
[1752078331167,4.7001071,154.4,154.33,6.4787]
[1752078332072,4.7001071,154.4,154.32,6.479]
[1752078332269,6.4781,154.35,154.32,6.479]
[1752078332871,6.4785,154.34,154.32,6.479]
[1752078333079,4.7001071,154.36,154.29,4.7001071]
[1752078333372,6.4797,154.31,154.29,4.7001071]
[1752078333571,4.7001071,154.36,154.29,4.7001071]
[1752078333771,4.7001071,154.34,154.26,12.03995314]
[1752078333972,6.4804,154.3,154.26,16.74006024]
[1752078334173,6.4804,154.3,154.26,4.7001071]
[1752078334478,6.4804,154.3,154.27,6.481]
[1752078335272,6.4805,154.29,154.27,6.481]
[1752078335471,4.7001071,154.34,154.27,6.481]
[1752078335873,4.7001071,154.32,154.26,4.7001071]
[1752078336677,6.4808,154.29,154.26,11.1815071]
[1752078337570,6.4808,154.29,154.26,6.4814]
[1752078337766,6.4809,154.28,154.25,6.4819]
[1752078337973,4.7001071,154.32,154.24,16.74006024]
[1752078338270,4.7001071,154.32,154.23,12.03995314]
[1752078338474,6.4811,154.28,154.25,6.4818]
[1752078338875,2.1239,154.31,154.25,6.4818]
[1752078338876,6.4814,154.27,154.25,6.4818]
[1752078339075,4.7001071,154.26,154.2,12.03995314]
[1752078339375,4.7001071,154.26,154.19,4.7001071]
[1752078339580,4.7001071,154.28,154.22,6.483]
[1752078340177,4.7001071,154.28,154.23,6.4827]
[1752078340877,6.4814,154.27,154.23,6.4827]
[1752078341278,6.4814,154.27,154.24,6.4824]
[1752078342176,2.1239,154.31,154.23,4.7001071]
[1752078342580,6.4803,154.3,154.27,6.4808]
[1752078342777,4.7001071,154.32,154.25,4.7001071]
[1752078343280,6.4797,154.31,154.25,4.7001071]
[1752078344084,6.4797,154.31,154.28,6.4808]
[1752078344379,6.4797,154.31,154.25,4.7001071]
[1752078344380,4.5726,154.38,154.27,4.7001071]
[1752078344582,4.7001071,154.34,154.27,4.7001071]
[1752078345583,6.4794,154.32,154.29,6.4803]
[1752078346074,4.7001071,154.34,154.29,6.4803]
[1752078347477,6.4794,154.32,154.29,6.4803]
[1752078347784,4.7001071,154.35,154.3,6.4798]
[1752078347977,6.479,154.33,154.3,6.4798]
[1752078348281,4.7001071,154.35,154.3,6.4798]
[1752078349483,4.7001071,154.33,154.26,4.7001071]
[1752078349977,4.7001071,154.33,154.28,6.4804]
[1752078351078,6.48,154.3,154.28,6.4804]
[1752078351493,6.48,154.3,154.27,6.4811]
[1752078353183,4.7001071,154.31,154.24,4.7001071]
[1752078353381,4.7001071,154.29,154.22,6.8829071]
[1752078353589,6.4819,154.26,154.23,6.4826]
[1752078353791,4.7001071,154.29,154.22,6.8829071]
[1752078354085,6.4815,154.27,154.22,6.8829071]
[1752078354688,6.4815,154.27,154.24,6.4822]
[1752078354888,6.4815,154.27,154.22,6.8829071]
[1752078355082,4.7001071,154.31,154.24,4.7001071]
[1752078355083,6.481,154.28,154.24,4.7001071]
[1752078355284,4.7001071,154.31,154.24,4.7001071]
[1752078355487,2.3475,154.32,154.24,4.7001071]
[1752078355788,2.3475,154.32,154.26,6.4816]
[1752078356190,6.4808,154.29,154.26,6.4816]
[1752078356484,6.4808,154.29,154.26,11.1817071]
[1752078357284,6.4809,154.28,154.26,11.1817071]
[1752078357483,4.7001071,154.31,154.22,2.1828]
[1752078357781,4.7001071,154.31,154.23,4.7001071]
[1752078357985,6.4813,154.27,154.24,6.4824]
[1752078358184,6.4813,154.27,154.23,4.7001071]
[1752078358592,6.4813,154.27,154.24,6.4824]
[1752078359082,6.4813,154.27,154.25,6.482]
[1752078359989,6.4817,154.26,154.24,6.4823]
[1752078360182,6.4817,154.26,154.23,4.7001071]
[1752078360378,6.482,154.26,154.23,4.7001071]
[1752078360588,4.7001071,154.29,154.23,4.7001071]
[1752078361187,6.4819,154.26,154.23,11.1828071]
[1752078361389,4.7001071,154.29,154.23,11.1828071]
[1752078362286,6.4811,154.28,154.24,6.4824]
[1752078362485,4.7001071,154.29,154.23,4.7001071]
[1752078363086,2.3475,154.32,154.23,4.7001071]
[1752078363487,4.7001071,154.3,154.23,4.7001071]
[1752078363694,4.7001071,154.3,154.24,6.4823]
[1752078364289,4.7001071,154.3,154.23,11.1828071]
[1752078364593,4.7001071,154.3,154.21,4.7001071]
[1752078365493,6.4819,154.26,154.24,6.4822]
[1752078365690,4.7001071,154.3,154.24,6.4822]
[1752078367493,6.4816,154.27,154.24,6.4822]
[1752078367798,4.7001071,154.3,154.24,6.4822]
[1752078369998,6.4818,154.26,154.24,6.4822]
[1752078371604,6.4823,154.25,154.23,6.4827]
[1752078371906,6.4823,154.25,154.22,13.69609784]
[1752078372204,4.7001071,154.28,154.22,8.99599074]
[1752078372393,4.7001071,154.28,154.21,8.99599074]
[1752078372792,0.04268124,154.27,154.23,0.04176835]
[1752078374111,6.4827,154.24,154.23,0.04176835]
[1752078377204,6.4827,154.24,154.23,9.03775909]
[1752078380312,6.4827,154.24,154.23,0.04176835]
[1752078382113,4.7001071,154.26,154.23,0.04176835]
[1752078382507,6.4825,154.24,154.23,0.04176835]
[1752078382709,2.25808124,154.27,154.23,6.52446835]
[1752078383006,6.482,154.26,154.23,15.52045909]
[1752078383202,2.25808124,154.27,154.23,15.52045909]
[1752078383613,0.04268124,154.27,154.24,6.4825]
[1752078383813,0.04268124,154.27,154.24,8.99599074]
[1752078384013,6.52418124,154.27,154.24,8.99599074]
[1752078384310,6.52418124,154.27,154.25,6.482]
[1752078384511,6.52418124,154.27,154.24,8.99599074]
[1752078384817,6.52418124,154.27,154.24,15.47829074]
[1752078385915,6.4818,154.26,154.24,8.99599074]
[1752078386110,0.04268124,154.27,154.23,9.03775909]
[1752078386511,6.4823,154.25,154.23,9.03775909]
[1752078387119,6.4825,154.24,154.23,9.03775909]
[1752078387312,0.04268124,154.27,154.23,9.03775909]
[1752078387512,6.4819,154.26,154.24,8.99599074]
[1752078389316,6.4821,154.25,154.24,8.99599074]
[1752078389517,4.7001071,154.26,154.23,0.04176835]
[1752078390218,6.4825,154.24,154.23,0.04176835]
[1752078392116,6.4825,154.24,154.23,9.03775909]
[1752078395020,6.4824,154.25,154.23,9.03775909]
[1752078395515,0.04268124,154.27,154.23,9.03775909]
[1752078395721,6.4824,154.25,154.23,9.03775909]
[1752078396118,6.4824,154.25,154.24,8.99599074]
[1752078396319,6.4824,154.25,154.23,12.08172149]
[1752078396513,6.4824,154.25,154.23,18.56442149]
[1752078396719,6.4819,154.26,154.23,18.56442149]
[1752078396919,0.04268124,154.27,154.25,9.04773337]
[1752078397321,6.4817,154.26,154.25,9.04773337]
[1752078397827,6.4817,154.26,154.24,9.0491927]
[1752078399219,6.4817,154.26,154.24,15.5315927]
[1752078399416,6.4817,154.26,154.25,9.0491927]
[1752078400421,6.4817,154.26,154.24,6.4824]
[1752078404429,6.4817,154.26,154.23,18.56442149]
[1752078406029,6.4822,154.25,154.23,18.56442149]
[1752078408926,6.4818,154.26,154.24,6.4825]
[1752078409126,0.04268124,154.27,154.24,4.70418841]
[1752078409334,0.04268124,154.27,154.26,16.74414155]
[1752078409730,0.04268124,154.27,154.26,23.22584155]
[1752078410326,0.04268124,154.27,154.26,11.18588841]
[1752078411036,0.04268124,154.27,154.26,23.22584155]
[1752078412332,6.52388124,154.27,154.26,4.70418841]
[1752078412732,6.52388124,154.27,154.25,6.482]
[1752078414136,6.4817,154.26,154.24,25.57244155]
[1752078414638,0.04268124,154.27,154.24,25.57244155]
[1752078414840,6.52428124,154.27,154.24,25.57244155]
[1752078415532,6.52428124,154.27,154.25,6.4821]
[1752078416435,6.4817,154.26,154.24,25.57244155]
[1752078417833,6.4817,154.26,154.24,18.52225314]
[1752078418133,0.04268124,154.27,154.23,16.78572655]
[1752078418341,0.04268124,154.27,154.24,12.03995314]
[1752078418540,6.52418124,154.27,154.25,6.482]
[1752078418841,0.04268124,154.27,154.25,16.7439582]
[1752078419535,0.04268124,154.27,154.26,12.03995314]
[1752078419736,0.04268124,154.27,154.26,18.52165314]
[1752078420039,0.04268124,154.27,154.25,16.7439582]
[1752078421239,0.04268124,154.27,154.26,6.4817]
[1752078421938,6.52388124,154.27,154.25,23.2259582]
[1752078422139,6.52388124,154.27,154.25,11.18600506]
[1752078422736,0.04268124,154.27,154.24,12.03995314]
[1752078423039,0.04268124,154.27,154.23,16.78514892]
[1752078423230,0.04268124,154.27,154.23,4.74519578]
[1752078423836,6.4819,154.26,154.24,6.4825]
[1752078425440,6.52408124,154.27,154.24,6.4825]
[1752078425942,0.04268124,154.27,154.24,6.4825]
[1752078426843,6.4817,154.26,154.24,6.4825]
[1752078427837,6.4817,154.26,154.23,16.78514892]
[1752078428039,6.4817,154.26,154.23,23.26784892]
[1752078428244,6.4822,154.25,154.23,11.22789578]
[1752078430356,6.4825,154.24,154.23,0.04176835]
[1752078431762,6.4825,154.24,154.23,9.08632254]
[1752078433060,6.4823,154.25,154.23,9.08632254]
[1752078433260,0.04268124,154.27,154.24,9.04455419]
[1752078433460,0.04268124,154.27,154.23,0.04176835]
[1752078433461,0.04268124,154.27,154.25,9.04455419]
[1752078433760,6.4819,154.26,154.25,9.04455419]
[1752078435756,6.52408124,154.27,154.25,15.52655419]
[1752078435966,0.04268124,154.27,154.26,9.04455419]
[1752078436564,0.04268124,154.27,154.25,12.03995314]
[1752078436867,0.04268124,154.27,154.26,6.4816]
[1752078438467,0.04268124,154.27,154.26,18.52155314]
[1752078438865,0.04268124,154.27,154.26,6.4816]
[1752078439269,6.4795,154.32,154.29,6.4802]
[1752078439569,6.4795,154.32,154.29,15.52472837]
[1752078439769,6.4795,154.32,154.3,6.4799]
[1752078440668,6.4789,154.33,154.3,20.2278558]
[1752078440858,6.4789,154.33,154.3,11.18332743]
[1752078441263,6.4785,154.34,154.31,6.4795]
[1752078441658,2.2805,154.35,154.31,6.4795]
[1752078442169,6.4789,154.33,154.3,11.18322743]
[1752078442769,2.2805,154.35,154.3,11.18322743]
[1752078444968,2.2805,154.35,154.3,4.70342743]
[1752078445167,2.1473,154.37,154.3,4.70342743]
[1752078445770,6.4789,154.33,154.3,11.18322743]
[1752078448371,6.4785,154.34,154.3,4.70342743]
[1752078448572,2.1473,154.37,154.32,4.70342743]
[1752078449070,2.1473,154.37,154.32,11.18232743]
[1752078449272,2.1473,154.37,154.33,0.04760164]
[1752078449676,6.4782,154.35,154.33,0.04760164]
[1752078449862,2.1473,154.37,154.33,0.04760164]
[1752078450371,6.4783,154.34,154.33,0.04760164]
[1752078450765,2.1473,154.37,154.33,0.04760164]
[1752078451472,6.4783,154.34,154.33,0.04760164]
[1752078455570,2.3103,154.39,154.33,0.04760164]
[1752078455770,2.3103,154.39,154.34,4.70342743]
[1752078456177,6.4774,154.37,154.34,11.18152743]
[1752078456674,6.4775,154.36,154.34,11.18152743]
[1752078457573,6.4779,154.35,154.34,4.70342743]
[1752078457771,7.01372743,154.39,154.33,0.04760164]
[1752078458272,6.4783,154.34,154.33,0.04760164]
[1752078458472,2.3103,154.39,154.33,0.04760164]
[1752078458864,7.01372743,154.39,154.33,0.04760164]
[1752078459477,6.4783,154.34,154.33,0.04760164]
[1752078464474,2.3103,154.39,154.33,0.04760164]
[1752078465280,2.3103,154.39,154.34,6.4783]
[1752078465480,2.1864,154.41,154.34,4.70342743]
[1752078465879,6.4769,154.38,154.35,6.4775]
[1752078466579,6.4771,154.37,154.35,6.52436733]
[1752078469484,6.4771,154.37,154.35,0.04686733]
[1752078470387,4.70342743,154.42,154.36,4.70342743]
[1752078472284,2.2163,154.43,154.36,4.70342743]
[1752078473085,6.476,154.4,154.38,6.4764]
[1752078474181,6.4754,154.41,154.39,6.4761]
[1752078474486,93.48308836,154.45,154.38,4.70342743]
[1752078474887,6.4754,154.41,154.39,6.476]
[1752078475686,6.4758,154.4,154.38,11.17982743]
[1752078475883,93.48308836,154.45,154.38,4.70342743]
[1752078476484,6.4756,154.41,154.39,6.4762]
[1752078478395,4.70342743,154.44,154.37,4.75236897]
[1752078479083,4.70342743,154.44,154.38,6.4765]
[1752078480094,6.476,154.4,154.38,6.4765]
[1752078481285,6.4755,154.41,154.38,6.4765]
[1752078481490,6.4755,154.41,154.37,4.75236897]
[1752078482092,6.4755,154.41,154.38,6.4762]
[1752078482395,6.475,154.42,154.39,4.70342743]
[1752078482990,6.475,154.42,154.39,4.7448353]
[1752078483190,6.475,154.42,154.4,6.4755]
[1752078483393,6.4748,154.43,154.39,4.7448353]
[1752078483596,2.3246,154.46,154.41,6.4751]
[1752078483991,2.3246,154.46,154.39,4.7448353]
[1752078484193,2.3246,154.46,154.4,6.4755]
[1752078484694,6.4748,154.43,154.4,6.4755]
[1752078486096,2.3246,154.46,154.4,6.4755]
[1752078486495,6.4747,154.43,154.4,6.4755]
[1752078487700,6.4749,154.42,154.4,6.4755]
[1752078488002,6.4747,154.43,154.4,6.4755]
[1752078489098,6.4747,154.43,154.41,6.4753]
[1752078489398,6.4747,154.43,154.39,4.7448353]
[1752078489700,6.4747,154.43,154.41,6.4751]
[1752078489999,6.4747,154.43,154.39,4.7448353]
[1752078490498,2.3438,154.47,154.4,6.4757]
[1752078490699,7.04722743,154.47,154.4,6.4757]
[1752078490902,6.4744,154.44,154.4,6.4757]
[1752078491305,6.4744,154.44,154.39,11.2208353]
[1752078491598,6.4746,154.43,154.39,11.2208353]
[1752078492203,4.70342743,154.45,154.39,4.7448353]
[1752078492771,4.70342743,154.45,154.39,0.04140787]
[1752078492901,6.4758,154.4,154.39,0.04140787]
[1752078494509,4.70342743,154.4,154.3,2.3229]
[1752078494693,4.70342743,154.41,154.25,695.78259202]
[1752078494694,4.70342743,154.35,154.26,16.76279859]
[1752078494895,4.70342743,154.33,154.26,4.70342743]
[1752078495108,4.70342743,154.33,154.26,11.18492743]
[1752078495595,6.4802,154.3,154.26,11.18492743]
[1752078495798,4.70342743,154.33,154.26,11.18492743]
[1752078496001,4.70342743,154.33,154.26,4.70342743]
[1752078496203,6.4806,154.29,154.26,4.70342743]
[1752078496399,4.70342743,154.33,154.26,4.70342743]
[1752078496907,4.70342743,154.33,154.26,11.18492743]
[1752078497308,6.4807,154.29,154.26,11.18492743]
[1752078498109,6.4803,154.3,154.27,6.4811]
[1752078498708,6.4804,154.29,154.27,6.4811]
[1752078499511,6.4802,154.3,154.27,6.4811]
[1752078499905,6.4805,154.29,154.26,11.18492743]
[1752078500405,4.70342743,154.35,154.26,4.70342743]
[1752078500603,4.70342743,154.35,154.27,6.4812]
[1752078501111,6.4798,154.31,154.27,6.4812]
[1752078501511,6.4798,154.31,154.28,6.4808]
[1752078502103,6.48,154.3,154.27,6.481]
[1752078502709,6.4797,154.31,154.28,6.4808]
[1752078503403,6.48,154.3,154.27,6.481]
[1752078505913,6.48,154.3,154.28,6.4807]
[1752078506507,6.4797,154.31,154.28,6.4807]
[1752078506812,6.4797,154.31,154.28,4.70342743]
[1752078507112,6.48,154.3,154.28,4.70342743]
[1752078510112,6.4804,154.29,154.26,11.18492743]
[1752078510310,4.70342743,154.35,154.27,188.88]
[1752078510617,6.4802,154.3,154.27,195.3612]
[1752078511013,4.70342743,154.35,154.27,195.3612]
[1752078511318,6.4794,154.32,154.27,188.88]
[1752078511806,6.4794,154.32,154.28,6.4804]
[1752078512010,6.4794,154.32,154.27,188.88]
[1752078512415,6.4794,154.32,154.29,6.4802]
[1752078516113,4.70342743,154.35,154.29,6.4802]
[1752078516313,4.70342743,154.35,154.28,6.4806]
[1752078516818,6.4796,154.31,154.28,6.4806]
[1752078517616,6.4796,154.31,154.27,188.88]
[1752078517819,6.4796,154.31,154.29,6.4803]
[1752078518021,6.4796,154.31,154.27,188.88]
[1752078518319,6.4796,154.31,154.29,6.4804]
[1752078518522,6.4794,154.32,154.29,6.4804]
[1752078520622,4.70342743,154.35,154.29,6.4804]
[1752078521224,6.4794,154.32,154.29,6.4804]
[1752078521824,6.4796,154.31,154.29,6.4804]
[1752078523627,6.4796,154.31,154.28,6.4806]
[1752078524130,6.4796,154.31,154.27,188.88]
[1752078524330,6.4793,154.32,154.29,6.4802]
[1752078526135,6.4796,154.31,154.29,6.4802]
[1752078530037,6.48,154.3,154.28,188.8]
[1752078530538,6.4798,154.31,154.28,195.2805]
[1752078530935,6.4798,154.31,154.28,198.28962225]
[1752078531531,6.4798,154.31,154.29,6.4804]
[1752078531737,6.4798,154.31,154.28,191.80912225]
[1752078532436,6.4798,154.31,154.28,191.76912225]
[1752078532638,6.4792,154.32,154.29,3.00912225]
[1752078533034,3.00912225,154.33,154.29,3.00912225]
[1752078533237,6.4792,154.32,154.29,9.48922225]
[1752078533434,3.00912225,154.33,154.29,9.48922225]
[1752078533737,6.4795,154.32,154.29,9.48922225]
[1752078533941,3.00912225,154.33,154.29,9.48922225]
[1752078534140,6.4795,154.32,154.29,9.48922225]
[1752078535031,6.4796,154.31,154.29,6.4801]
[1752078536240,6.4793,154.32,154.29,9.48922225]
[1752078536636,4.4538,154.39,154.3,3.00912225]
[1752078536838,6.4788,154.33,154.3,3.00912225]
[1752078537035,6.4788,154.33,154.3,3.00806342]
[1752078537237,3.00806342,154.35,154.3,3.00806342]
[1752078537437,6.4783,154.34,154.3,3.00806342]
[1752078537632,7.46186342,154.39,154.33,3.00806342]
[1752078537837,7.46186342,154.39,154.35,3.00806342]
[1752078538236,6.4773,154.37,154.35,3.00806342]
[1752078538442,7.46186342,154.39,154.35,3.00806342]
[1752078538642,3.00666202,154.38,154.34,3.00666202]
[1752078538843,6.4774,154.36,154.33,6.4784]
[1752078539141,6.4774,154.36,154.32,205.49728732]
[1752078539340,6.4772,154.37,154.34,6.4781]
[1752078539543,4.4538,154.39,154.34,4.69791616]
[1752078540438,4.69791616,154.42,154.36,4.69791616]
[1752078540940,6.476,154.4,154.37,6.4767]
[1752078542141,6.4755,154.41,154.38,6.4765]
[1752078542345,4.4489,154.44,154.38,4.69791616]
[1752078542741,6.4747,154.43,154.4,6.4754]
[1752078543044,4.4489,154.44,154.38,4.69791616]
[1752078543244,6.4756,154.41,154.38,11.17431616]
[1752078543944,6.4756,154.41,154.39,6.4761]
[1752078544151,6.4751,154.42,154.39,6.4761]
[1752078547445,4.4489,154.44,154.38,6.4764]
[1752078547645,4.69791616,154.41,154.35,1.0]
[1752078547840,4.69791616,154.39,154.32,1.0]
[1752078548044,4.69791616,154.37,154.32,1.0]
[1752078548247,4.69791616,154.37,154.31,559.48]